fUST/lending_fUST_20240105
["ID","MTS","AMOUNT","RATE_DAILY","PERIOD"]
[310279176,1704459052486,-500.0,0.00036492,7]
[310279177,1704459052495,-500.0,0.00036492,7]
[310279178,1704459052504,-500.0,0.00036492,7]
[310279179,1704459052514,-583.89,0.00036492,7]
[310279180,1704459052523,-500.0,0.00036492,7]
[310279181,1704459052532,-3608.46,0.00036492,7]
[310279182,1704459052541,-500.0,0.00036492,7]
[310279183,1704459052550,-500.0,0.00036492,7]
[310279184,1704459052560,-184.96844042,0.00036492,7]
[310279185,1704459052569,-500.0,0.00036492,7]
[310279186,1704459052578,-500.0,0.00036492,7]
[310279187,1704459052587,-500.0,0.00036492,7]
[310279188,1704459052596,-500.0,0.00036492,7]
[310279189,1704459052605,-500.0,0.00036492,7]
[310279190,1704459052615,-219.56116551,0.00036492,7]
[310279191,1704459052624,-500.0,0.00036492,7]
[310279192,1704459052633,-500.0,0.00036492,7]
[310279193,1704459052643,-1222.67,0.00036492,7]
[310279194,1704459052652,-500.0,0.00036492,7]
[310279195,1704459052661,-500.0,0.00036492,2]
[310279196,1704459052670,-47006.99796797,0.00036496,14]
[310279197,1704459052679,-500.0,0.00036502,7]
[310279198,1704459052689,-500.0,0.00036502,7]
[310279199,1704459052698,-500.0,0.00036502,7]
[310279200,1704459052708,-500.0,0.00036502,7]
[310279201,1704459052717,-519.25805583,0.00036502,7]
[310279202,1704459052726,-503.02796737,0.00036502,7]
[310279203,1704459052736,-501.07482432,0.00036502,7]
[310279204,1704459052746,-513.91619907,0.00036502,7]
[310279205,1704459052755,-500.0,0.00036502,7]
[310279206,1704459052765,-500.0,0.00036502,7]
[310279208,1704459052857,-505.44976287,0.00036502,7]
[310279209,1704459052867,-500.0,0.00036502,7]
[310279210,1704459052876,-511.42492184,0.00036502,7]
[310279211,1704459052885,-500.0,0.00036502,7]
[310279212,1704459052895,-500.0,0.00036502,7]
[310279213,1704459052904,-500.0,0.00036502,7]
[310279214,1704459052913,-505.57423544,0.00036502,7]
[310279215,1704459052922,-500.0,0.00036502,7]
[310279216,1704459052931,-500.0,0.00036502,7]
[310279217,1704459052940,-500.0,0.00036502,7]
[310279218,1704459052949,-500.0,0.00036502,7]
[310279219,1704459052958,-500.0,0.00036502,7]
[310279220,1704459052968,-500.0,0.00036502,7]
[310279221,1704459052977,-833.86,0.00036502,7]
[310279222,1704459052986,-639.80127256,0.00036502,7]
[310279223,1704459052997,-500.50414436,0.00036502,7]
[310279224,1704459053006,-500.0,0.00036502,7]
[310279225,1704459053014,-500.0,0.00036502,7]
[310279226,1704459053024,-501.57461972,0.00036502,30]
[310279227,1704459053035,-500.0,0.00036502,7]
[310279228,1704459053044,-500.0,0.00036502,7]
[310279229,1704459053054,-500.0,0.00036502,7]
[310279230,1704459053063,-500.0,0.00036502,7]
[310279231,1704459053072,-276.39888,0.00036502,7]
[310279232,1704459053082,-500.0,0.00036502,7]
[310279233,1704459053091,-508.0897188,0.00036502,7]
[310279234,1704459053099,-245.83726208,0.00036502,7]
[310279235,1704459053109,-574.00080377,0.00036502,7]
[310279236,1704459053118,-503.13937264,0.00036502,7]
[310279237,1704459053127,-500.0,0.00036502,7]
[310279238,1704459053137,-500.0,0.00036502,7]
[310279239,1704459053147,-500.0,0.00036502,7]
[310279240,1704459053156,-313.15780542,0.00036502,7]
[310279241,1704459053166,-500.0,0.00036502,7]
[310279242,1704459053175,-500.0,0.00036502,7]
[310279243,1704459053185,-500.0,0.00036502,7]
[310279244,1704459053194,-500.0,0.00036502,7]
[310279245,1704459053203,-500.0,0.00036502,7]
[310279246,1704459053213,-500.0,0.00036502,7]
[310279247,1704459053222,-500.0,0.00036502,7]
[310279248,1704459053232,-500.0,0.00036502,7]
[310279249,1704459053242,-500.0,0.00036502,7]
[310279250,1704459053251,-525.52,0.00036502,7]
[310279251,1704459053261,-500.0,0.00036502,7]
[310279252,1704459053271,-564.40469256,0.00036502,7]
[310279253,1704459053281,-153.47997202,0.00036502,7]
[310279254,1704459053290,-202.04209669,0.00036502,7]
[310279255,1704459053300,-500.0,0.00036502,7]
[310279256,1704459053309,-500.0,0.00036502,7]
[310279257,1704459053318,-500.0,0.00036502,7]
[310279258,1704459053328,-500.0,0.00036512,7]
[310279259,1704459053336,-500.65748711,0.00036512,7]
[310279260,1704459053346,-527.08416943,0.00036512,7]
[310279261,1704459053356,-1581.41,0.00036512,7]
[310279262,1704459053366,-500.0,0.00036512,7]
[310279263,1704459053375,-500.0,0.00036512,7]
[310279264,1704459053385,-500.0,0.00036512,7]
[310279265,1704459053395,-501.77772623,0.00036512,7]
[310279266,1704459053405,-515.84512002,0.00036512,7]
[310279267,1704459053414,-55436.15,0.00036512,3]
[310279268,1704459053423,-532.45,0.00036512,7]
[310279269,1704459053433,-8443.55,0.00036512,7]
[310279270,1704459053442,-500.6447322,0.00036512,7]
[310279271,1704459053452,-500.0,0.00036512,7]
[310279272,1704459053462,-281.05462338,0.00036512,7]
[310279273,1704459053472,-500.0,0.00036512,7]
[310279274,1704459053481,-500.0,0.00036512,7]
[310279275,1704459053490,-502.65900847,0.00036512,7]
[310279276,1704459053500,-500.0,0.00036512,7]
[310279277,1704459053509,-500.0,0.00036512,7]
[310279278,1704459053520,-500.19802711,0.00036512,7]
[310279279,1704459053529,-12375.52,0.00036512,7]
[310279280,1704459053538,-500.0,0.00036512,7]
[310279281,1704459053548,-201.33466855,0.00036512,7]
[310279282,1704459053558,-500.0,0.00036512,7]
[310279283,1704459053568,-500.0,0.00036512,7]
[310279284,1704459053577,-626.57370642,0.00036512,7]
[310279285,1704459053586,-500.0,0.00036512,7]
[310279286,1704459053597,-500.0,0.00036512,7]
[310279287,1704459053606,-1494.5,0.00036512,7]
[310279288,1704459053615,-734.91,0.00036512,7]
[310279289,1704459053624,-500.0,0.00036512,7]
[310279290,1704459053633,-517.1059045,0.00036512,7]
[310279291,1704459053643,-500.0,0.00036512,7]
[310279292,1704459053652,-4330.13,0.00036512,7]
[310279293,1704459053661,-1296.28,0.00036532,7]
[310279294,1704459053671,-6988.09,0.00036532,7]
[310279295,1704459053680,-2068.53,0.00036532,7]
[310279296,1704459053690,-500.0,0.00036532,7]
[310279297,1704459053699,-1582.99,0.00036532,7]
[310279298,1704459053708,-500.0,0.00036532,7]
[310279299,1704459053717,-500.0,0.00036532,7]
[310279300,1704459053727,-574.30571241,0.00036532,7]
[310279301,1704459053738,-500.0,0.00036532,7]
[310279302,1704459053748,-814.63,0.00036532,7]
[310279303,1704459053758,-500.0,0.00036532,7]
[310279304,1704459053768,-2712.3,0.00036532,7]
[310279305,1704459053777,-500.0,0.00036532,7]
[310279306,1704459053786,-506.40600217,0.00036532,7]
[310279307,1704459053796,-500.0,0.00036532,7]
[310279308,1704459053805,-500.0,0.00036532,7]
[310279309,1704459053814,-500.0,0.00036532,7]
[310279310,1704459053824,-2830.56,0.00036532,7]
[310279311,1704459053834,-500.0,0.00036543,7]
[310279312,1704459053843,-1011.98,0.00036543,7]
[310279313,1704459053854,-619.36,0.00036543,7]
[310279314,1704459053863,-500.0,0.00036543,7]
[310279315,1704459053872,-500.0,0.00036543,7]
[310279316,1704459053881,-501.39348037,0.00036543,7]
[310279317,1704459053891,-500.0,0.00036543,7]
[310279318,1704459053901,-500.0,0.00036543,7]
[310279319,1704459053911,-500.0,0.00036543,7]
[310279320,1704459053921,-501.89360353,0.00036543,7]
[310279321,1704459053930,-500.0,0.00036543,7]
[310279322,1704459053939,-500.0,0.00036543,7]
[310279323,1704459053947,-500.0,0.00036543,7]
[310279324,1704459053957,-521.66080083,0.00036543,7]
[310279325,1704459053966,-500.0,0.00036543,7]
[310279326,1704459053975,-503.15278468,0.00036543,7]
[310279327,1704459053983,-496.78237712,0.00036543,7]
[310279328,1704459053993,-609.35330921,0.00036543,7]
[310279329,1704459054002,-500.0,0.00036543,7]
[310279330,1704459054011,-500.0,0.00036543,7]
[310279331,1704459054021,-500.0,0.00036543,7]
[310279332,1704459054030,-500.0,0.00036543,7]
[310279333,1704459054039,-500.0,0.00036543,7]
[310279334,1704459054049,-559.65,0.00036543,7]
[310279335,1704459054058,-500.0,0.00036543,7]
[310279336,1704459054067,-500.0,0.00036543,7]
[310279337,1704459054076,-773.11,0.00036543,7]
[310279338,1704459054085,-500.0,0.00036543,7]
[310279339,1704459054094,-500.0,0.00036543,7]
[310279340,1704459054103,-500.0,0.00036543,7]
[310279341,1704459054113,-604.56,0.00036543,7]
[310279342,1704459054122,-554.68677171,0.00036543,7]
[310279343,1704459054131,-501.00064141,0.00036543,7]
[310279344,1704459054141,-502.21695413,0.00036543,7]
[310279345,1704459054150,-501.31949023,0.00036543,7]
[310279346,1704459054159,-500.0,0.00036543,7]
[310279347,1704459054168,-500.0,0.00036543,7]
[310279348,1704459054177,-500.0,0.00036543,7]
[310279349,1704459054186,-500.0,0.00036543,7]
[310279350,1704459054196,-500.0,0.00036543,7]
[310279351,1704459054206,-195.30716215,0.00036543,7]
[310279352,1704459054215,-500.3799099,0.00036543,7]
[310279353,1704459054225,-500.3865222,0.00036543,7]
[310279354,1704459054234,-1642.96,0.00036543,7]
[310279355,1704459054243,-509.82,0.00036543,7]
[310279356,1704459054255,-500.0,0.00036543,7]
[310279357,1704459054264,-500.0,0.00036543,7]
[310279358,1704459054274,-500.0,0.00036543,7]
[310279359,1704459054284,-500.0,0.00036543,7]
[310279360,1704459054293,-503.74133722,0.00036543,7]
[310279361,1704459054303,-982.7,0.00036543,7]
[310279362,1704459054312,-500.0,0.00036543,7]
[310279363,1704459054322,-500.0,0.00036543,7]
[310279364,1704459054331,-500.0,0.00036543,7]
[310279365,1704459054340,-500.0,0.00036543,7]
[310279366,1704459054349,-500.0,0.00036543,7]
[310279367,1704459054359,-502.41119113,0.00036543,7]
[310279368,1704459054369,-1418.34,0.00036543,7]
[310279369,1704459054378,-1000.0,0.00036543,2]
[310279370,1704459054388,-500.0,0.00036543,7]
[310279371,1704459054397,-500.0,0.00036543,7]
[310279372,1704459054406,-500.22369054,0.00036563,7]
[310279373,1704459054415,-500.0,0.00036563,7]
[310279374,1704459054425,-500.0,0.00036563,7]
[310279375,1704459054434,-500.0,0.00036563,7]
[310279376,1704459054444,-500.0,0.00036563,7]
[310279377,1704459054454,-504.31807778,0.00036563,7]
[310279378,1704459054464,-500.0,0.00036563,7]
[310279379,1704459054473,-500.0,0.00036563,7]
[310279380,1704459054482,-500.0,0.00036563,7]
[310279381,1704459054492,-500.0,0.00036563,7]
[310279382,1704459054502,-500.0,0.00036563,7]
[310279383,1704459054511,-300.80038144,0.00036563,7]
[310279384,1704459054520,-500.0,0.00036563,7]
[310279385,1704459054530,-500.0,0.00036563,7]
[310279386,1704459054539,-500.0,0.00036563,7]
[310279387,1704459054549,-500.0,0.00036563,7]
[310279388,1704459054558,-150.0,0.00036563,7]
[310279389,1704459054567,-500.0,0.00036563,7]
[310279390,1704459054576,-637.50221007,0.00036563,7]
[310279391,1704459054585,-500.0,0.00036563,7]
[310279392,1704459054593,-821.5,0.00036563,7]
[310279393,1704459054600,-500.0,0.00036563,7]
[310279394,1704459054610,-500.0,0.00036563,7]
[310279395,1704459054619,-500.0,0.00036563,7]
[310279396,1704459054628,-500.0,0.00036563,7]
[310279397,1704459054638,-500.0,0.00036563,7]
[310279398,1704459054647,-501.15154063,0.00036563,7]
[310279399,1704459054657,-500.0,0.00036563,7]
[310279400,1704459054667,-500.0,0.00036563,7]
[310279401,1704459054677,-500.0,0.00036563,7]
[310279402,1704459054686,-691.5,0.00036563,7]
[310279403,1704459054697,-338.08277861,0.00036563,7]
[310279404,1704459054708,-567.15,0.00036563,7]
[310279405,1704459054718,-500.0,0.00036563,7]
[310279406,1704459054727,-500.0,0.00036563,7]
[310279407,1704459054738,-500.0,0.00036563,2]
[310279408,1704459054748,-500.0,0.00036563,7]
[310279409,1704459054757,-500.0,0.00036563,7]
[310279410,1704459054767,-220.0,0.00036563,2]
[310279411,1704459054778,-607.13042149,0.00036563,7]
[310279412,1704459054870,-851.13,0.00036563,7]
[310279413,1704459054880,-500.0,0.00036563,7]
[310279414,1704459054889,-500.0,0.00036563,7]
[310279415,1704459054898,-219.11918825,0.00036563,7]
[310279416,1704459054908,-551.49411947,0.00036563,7]
[310279417,1704459054917,-500.0,0.00036563,7]
[310279418,1704459054926,-500.0,0.00036629,2]
[310279419,1704459054935,-621.89,0.00036664,7]
[310279420,1704459054945,-593.89,0.00036664,7]
[310279421,1704459054954,-500.0,0.00036664,7]
[310279422,1704459054963,-500.0,0.00036664,7]
[310279423,1704459054973,-10534.30274625,0.00036664,10]
[310279424,1704459054982,-500.0,0.00036664,7]
[310279425,1704459054991,-839.26,0.00036664,7]
[310279426,1704459055000,-500.0,0.00036664,7]
[310279427,1704459055010,-1430.28,0.00036664,7]
[310279428,1704459055020,-500.0,0.00036664,7]
[310279429,1704459055029,-500.0,0.00036664,7]
[310279430,1704459055039,-500.0,0.00036664,7]
[310279431,1704459055048,-500.0,0.00036664,7]
[310279432,1704459055057,-500.0,0.00036664,7]
[310279433,1704459055066,-289.88588003,0.00036745,7]
[310279434,1704459055075,-500.0,0.00036745,7]
[310279435,1704459055085,-500.0,0.00036745,7]
[310279436,1704459055094,-500.0,0.00036745,7]
[310279437,1704459055103,-500.0,0.00036745,7]
[310279438,1704459055112,-500.0,0.00036745,7]
[310279439,1704459055121,-500.0,0.00036745,7]
[310279440,1704459055130,-500.0,0.00036745,7]
[310279441,1704459055139,-500.0,0.00036745,7]
[310279442,1704459055148,-500.0,0.00036745,7]
[310279443,1704459055158,-417.46129719,0.00036745,7]
[310279444,1704459055166,-17347.69,0.00036755,7]
[310279445,1704459055175,-500.0,0.00036755,7]
[310279446,1704459055184,-500.0,0.00036766,2]
[310279447,1704459055192,-500.0,0.00036766,7]
[310279448,1704459055202,-1339.82,0.00036766,7]
[310279449,1704459055211,-500.0,0.00036766,7]
[310279450,1704459055221,-594.91,0.00036766,7]
[310279451,1704459055230,-1048.45,0.00036766,7]
[310279452,1704459055240,-500.0,0.00036766,7]
[310279453,1704459055250,-3018.36,0.00036766,7]
[310279454,1704459055259,-2383.79,0.00036766,7]
[310279455,1704459055269,-500.0,0.00036766,7]
[310279456,1704459055278,-582.89,0.00036766,7]
[310279457,1704459055288,-500.0,0.00036766,7]
[310279458,1704459055298,-504.00503976,0.00036766,7]
[310279459,1704459055307,-500.0,0.00036766,7]
[310279460,1704459055316,-583.89,0.00036766,7]
[310279461,1704459055325,-546.29219142,0.00036766,7]
[310279462,1704459055334,-3608.46,0.00036766,7]
[310279463,1704459055343,-500.0,0.00036766,7]
[310279464,1704459055352,-500.0,0.00036766,7]
[310279465,1704459055361,-500.0,0.00036766,7]
[310279466,1704459055370,-500.0,0.00036766,7]
[310279467,1704459055380,-500.0,0.00036766,7]
[310279468,1704459055389,-500.0,0.00036766,7]
[310279469,1704459055398,-500.0,0.00036766,7]
[310279470,1704459055408,-500.0,0.00036766,7]
[310279471,1704459055417,-278.67623334,0.00036766,7]
[310279472,1704459055427,-1222.67,0.00036766,7]
[310279473,1704459055436,-500.0,0.00036766,7]
[310279474,1704459055445,-500.0,0.00036766,2]
[310279475,1704459055454,-500.0,0.00036776,7]
[310279476,1704459055463,-500.0,0.00036776,7]
[310279477,1704459055472,-228.11568497,0.00036776,7]
[310279478,1704459055482,-500.0,0.00036776,7]
[310279479,1704459055491,-500.0,0.00036776,7]
[310279480,1704459055501,-500.0,0.00036776,7]
[310279481,1704459055513,-500.0,0.00036776,7]
[310279482,1704459055522,-596.97080434,0.00036776,7]
[310279483,1704459055532,-500.0,0.00036776,7]
[310279484,1704459055543,-500.0,0.00036776,7]
[310279485,1704459055552,-500.46251927,0.00036776,7]
[310279486,1704459055561,-500.0,0.00036776,7]
[310279487,1704459055571,-520.48052663,0.00036776,7]
[310279488,1704459055580,-500.0,0.00036776,7]
[310279489,1704459055590,-500.0,0.00036776,7]
[310279490,1704459055599,-500.0,0.00036776,7]
[310279491,1704459055609,-833.86,0.00036776,7]
[310279492,1704459055618,-500.0,0.00036776,7]
[310279493,1704459055627,-500.0,0.00036776,7]
[310279494,1704459055637,-400.36177018,0.00036776,7]
[310279495,1704459055646,-500.0,0.00036776,7]
[310279496,1704459055655,-500.0,0.00036776,7]
[310279497,1704459055664,-500.0,0.00036776,7]
[310279498,1704459055673,-505.74365974,0.00036776,7]
[310279499,1704459055682,-508.66938136,0.00036776,7]
[310279500,1704459055691,-502.83868619,0.00036776,7]
[310279501,1704459055700,-500.0,0.00036776,7]
[310279502,1704459055710,-500.0,0.00036776,7]
[310279503,1704459055719,-500.0,0.00036776,7]
[310279504,1704459055728,-218.66701716,0.00036776,7]
[310279505,1704459055738,-500.0,0.00036776,7]
[310279506,1704459055748,-500.0,0.00036776,7]
[310279507,1704459055757,-500.0,0.00036776,7]
[310279508,1704459055767,-500.0,0.00036776,7]
[310279509,1704459055776,-500.0,0.00036776,7]
[310279510,1704459055785,-500.78973615,0.00036776,7]
[310279511,1704459055794,-525.52,0.00036776,7]
[310279512,1704459055803,-500.0,0.00036776,7]
[310279513,1704459055813,-500.0,0.00036776,7]
[310279514,1704459055822,-500.0,0.00036776,7]
[310279515,1704459055831,-500.0,0.00036776,7]
[310279516,1704459055840,-500.0,0.00036786,7]
[310279517,1704459055850,-1581.41,0.00036786,7]
[310279518,1704459055859,-500.0,0.00036786,7]
[310279519,1704459055869,-500.0,0.00036786,7]
[310279520,1704459055879,-500.0,0.00036786,7]
[310279521,1704459055888,-55436.15,0.00036786,3]
[310279522,1704459055897,-532.45,0.00036786,7]
[310279523,1704459055906,-8443.55,0.00036786,7]
[310279524,1704459055915,-637.53064224,0.00036786,7]
[310279525,1704459055925,-500.0,0.00036786,7]
[310279526,1704459055934,-500.0,0.00036786,7]
[310279527,1704459055944,-509.98207278,0.00036786,7]
[310279528,1704459055953,-500.0,0.00036786,7]
[310279529,1704459055962,-12375.52,0.00036786,7]
[310279530,1704459055971,-500.0,0.00036786,7]
[310279531,1704459055980,-500.0,0.00036786,7]
[310279532,1704459055990,-525.49627587,0.00036786,7]
[310279533,1704459055999,-500.0,0.00036786,7]
[310279534,1704459056008,-500.0,0.00036786,7]
[310279535,1704459056018,-1494.5,0.00036786,7]
[310279536,1704459056026,-734.91,0.00036786,7]
[310279537,1704459056036,-500.0,0.00036786,7]
[310279538,1704459056045,-500.0,0.00036786,7]
[310279539,1704459056053,-1296.28,0.00036806,7]
[310279540,1704459056063,-6988.09,0.00036806,7]
[310279541,1704459056073,-2068.53,0.00036806,7]
[310279542,1704459056082,-502.3292976,0.00036806,7]
[310279543,1704459056092,-1582.99,0.00036806,7]
[310279544,1704459056102,-500.0,0.00036806,7]
[310279545,1704459056111,-500.0,0.00036806,7]
[310279546,1704459056120,-500.0,0.00036806,7]
[310279547,1704459056130,-814.63,0.00036806,7]
[310279548,1704459056139,-500.0,0.00036806,7]
[310279549,1704459056148,-2712.3,0.00036806,7]
[310279550,1704459056158,-506.61738415,0.00036806,7]
[310279551,1704459056167,-500.0,0.00036806,7]
[310279552,1704459056176,-500.0,0.00036806,7]
[310279553,1704459056186,-500.0,0.00036806,7]
[310279554,1704459056196,-2830.56,0.00036806,7]
[310279555,1704459056205,-500.0,0.00036817,7]
[310279556,1704459056215,-1011.98,0.00036817,7]
[310279557,1704459056224,-619.36,0.00036817,7]
[310279558,1704459056234,-500.0,0.00036817,7]
[310279559,1704459056244,-545.4045279,0.00036817,7]
[310279560,1704459056254,-500.0,0.00036817,7]
[310279561,1704459056264,-500.0,0.00036817,7]
[310279562,1704459056276,-399.51061942,0.00036817,7]
[310279563,1704459056286,-500.0,0.00036817,7]
[310279564,1704459056296,-500.0,0.00036817,7]
[310279565,1704459056306,-508.30931176,0.00036817,7]
[310279566,1704459056317,-509.86612326,0.00036817,7]
[310279567,1704459056327,-332.13743178,0.00036817,7]
[310279568,1704459056337,-500.0,0.00036817,7]
[310279569,1704459056346,-500.0,0.00036817,7]
[310279570,1704459056356,-500.0,0.00036817,7]
[310279571,1704459056366,-500.0,0.00036817,7]
[310279572,1704459056376,-559.65,0.00036817,7]
[310279573,1704459056384,-500.0,0.00036817,7]
[310279574,1704459056392,-500.0,0.00036817,7]
[310279575,1704459056402,-773.11,0.00036817,7]
[310279576,1704459056411,-500.0,0.00036817,7]
[310279577,1704459056421,-502.98456832,0.00036817,7]
[310279578,1704459056431,-500.0,0.00036817,7]
[310279579,1704459056441,-604.56,0.00036817,7]
[310279580,1704459056450,-500.0,0.00036817,7]
[310279581,1704459056460,-503.60248654,0.00036817,7]
[310279582,1704459056469,-502.4039788,0.00036817,7]
[310279583,1704459056479,-500.0,0.00036817,7]
[310279584,1704459056489,-501.64067437,0.00036817,7]
[310279585,1704459056499,-1642.96,0.00036817,7]
[310279586,1704459056508,-509.82,0.00036817,7]
[310279587,1704459056520,-500.0,0.00036817,7]
[310279588,1704459056529,-500.0,0.00036817,7]
[310279589,1704459056538,-504.99311838,0.00036817,7]
[310279590,1704459056548,-500.0,0.00036817,7]
[310279591,1704459056557,-982.7,0.00036817,7]
[310279592,1704459056566,-500.0,0.00036817,7]
[310279593,1704459056576,-500.0,0.00036817,7]
[310279594,1704459056585,-500.0,0.00036817,7]
[310279595,1704459056594,-504.71347356,0.00036817,7]
[310279596,1704459056603,-500.0,0.00036817,7]
[310279597,1704459056613,-1418.34,0.00036817,7]
[310279598,1704459056623,-1000.0,0.00036817,2]
[310279599,1704459056713,-500.0,0.00036817,7]
[310279600,1704459056723,-500.0,0.00036837,7]
[310279601,1704459056734,-500.0,0.00036837,7]
[310279602,1704459056743,-500.0,0.00036837,7]
[310279603,1704459056752,-500.0,0.00036837,7]
[310279604,1704459056762,-500.0,0.00036837,7]
[310279605,1704459056772,-500.0,0.00036837,7]
[310279606,1704459056781,-587.71685109,0.00036837,7]
[310279607,1704459056791,-500.0,0.00036837,7]
[310279608,1704459056800,-500.0,0.00036837,7]
[310279609,1704459056811,-500.0,0.00036837,7]
[310279610,1704459056820,-500.0,0.00036837,7]
[310279611,1704459056830,-492.78026755,0.00036837,7]
[310279612,1704459056839,-500.0,0.00036837,7]
[310279613,1704459056849,-150.0,0.00036837,7]
[310279614,1704459056859,-500.0,0.00036837,7]
[310279615,1704459056869,-618.39709423,0.00036837,7]
[310279616,1704459056878,-821.5,0.00036837,7]
[310279617,1704459056887,-500.0,0.00036837,7]
[310279618,1704459056897,-500.0,0.00036837,7]
[310279619,1704459056905,-518.55103513,0.00036837,7]
[310279620,1704459056914,-500.0,0.00036837,7]
[310279621,1704459056924,-500.0,0.00036837,7]
[310279622,1704459056933,-500.0,0.00036837,7]
[310279623,1704459056943,-501.72002236,0.00036837,7]
[310279624,1704459056952,-259.79603463,0.00036837,7]
[310279625,1704459056961,-691.5,0.00036837,7]
[310279626,1704459056971,-567.15,0.00036837,7]
[310279627,1704459056980,-500.0,0.00036837,7]
[310279628,1704459056990,-503.87725932,0.00036837,7]
[310279629,1704459056999,-500.0,0.00036837,2]
[310279630,1704459057009,-512.78718402,0.00036837,7]
[310279631,1704459057019,-500.0,0.00036837,7]
[310279632,1704459057028,-175.97936802,0.00036837,2]
[310279633,1704459057038,-851.13,0.00036837,7]
[310279634,1704459057046,-500.0,0.00036837,7]
[310279635,1704459057055,-504.31989087,0.00036837,7]
[310279636,1704459057065,-506.233083,0.00036837,7]
[310279637,1704459057074,-1000.0,0.000369,60]
[310279638,1704459057084,-500.0,0.00036903,2]
[310279639,1704459057093,-621.89,0.00036938,7]
[310279640,1704459057102,-593.89,0.00036938,7]
[310279641,1704459057111,-500.0,0.00036938,7]
[310279642,1704459057120,-503.46227234,0.00036938,7]
[310279643,1704459057130,-500.0,0.00036938,7]
[310279644,1704459057139,-839.26,0.00036938,7]
[310279645,1704459057148,-505.77961999,0.00036938,7]
[310279646,1704459057157,-1430.28,0.00036938,7]
[310279647,1704459057167,-500.0,0.00036938,7]
[310279648,1704459057176,-516.40853797,0.00036938,7]
[310279649,1704459057186,-503.46486662,0.00036938,7]
[310279650,1704459057195,-526.19219925,0.00036938,7]
[310279651,1704459057205,-505.97787266,0.00036938,7]
[310279652,1704459057214,-213.97896341,0.00037,2]
[310279653,1704459057224,-4548.523847,0.00037,2]
[310279654,1704459057234,-4209.5776207,0.00037,7]
[310279655,1704459057243,-28384.0,0.00037,2]
[310279656,1704459057254,-62271.0,0.00037,2]
[310279657,1704459057263,-1000.0,0.00037,37]
[310279658,1704459057273,-30269.00406112,0.00037,2]
[310279659,1704459057282,-269.74,0.00037,4]
[310279660,1704459057291,-1504.931275,0.00037,2]
[310279661,1704459057300,-157.01698011,0.0003701,5]
[310279662,1704459057309,-644.53113672,0.00037019,7]
[310279663,1704459057319,-500.0,0.00037019,7]
[310279664,1704459057328,-500.0,0.00037019,7]
[310279665,1704459057338,-500.0,0.00037019,7]
[310279666,1704459057347,-500.0,0.00037019,7]
[310279667,1704459057357,-501.01980679,0.00037019,7]
[310279668,1704459057367,-500.0,0.00037019,7]
[310279669,1704459057376,-500.0,0.00037019,7]
[310279670,1704459057385,-500.0,0.00037019,7]
[310279671,1704459057394,-17347.69,0.00037029,7]
[310279672,1704459057404,-500.0,0.00037029,7]
[310279673,1704459057414,-150.78889555,0.00037035,2]
[310279674,1704459057423,-500.0,0.0003704,2]
[310279675,1704459057433,-504.19985998,0.0003704,7]
[310279676,1704459057443,-1339.82,0.0003704,7]